fUSD/lending_fUSD_20250629
["ID","MTS","AMOUNT","RATE_DAILY","PERIOD"]
[368527528,1751195491151,-490.0,0.00029315,3]
[368527529,1751195491160,-293.81286907,0.00029315,3]
[368527530,1751195491171,-490.0,0.00029315,3]
[368527531,1751195491181,-1266.21,0.00029315,3]
[368527532,1751195491191,-490.0,0.00029315,3]
[368527533,1751195491200,-490.0,0.00029315,3]
[368527534,1751195491210,-690.25,0.00029315,3]
[368527535,1751195491219,-490.0,0.00029315,3]
[368527536,1751195491228,-598.13,0.00029315,3]
[368527537,1751195491238,-1113.04,0.00029315,3]
[368527538,1751195491248,-490.0,0.00029315,3]
[368527539,1751195491257,-523.97,0.00029315,3]
[368527540,1751195491266,-679.56,0.00029315,3]
[368527541,1751195491276,-490.0,0.00029315,3]
[368527542,1751195491285,-490.0,0.00029315,3]
[368527543,1751195491294,-490.0,0.00029315,3]
[368527544,1751195491304,-490.0,0.00029315,3]
[368527545,1751195491313,-594.99,0.00029315,3]
[368527546,1751195491322,-490.0,0.00029315,3]
[368527547,1751195491336,-490.0,0.00029315,3]
[368527548,1751195491346,-490.0,0.00029315,3]
[368527549,1751195491355,-1446.76,0.00029315,3]
[368527550,1751195491364,-490.0,0.00029315,3]
[368527551,1751195491373,-490.0,0.00029315,3]
[368527552,1751195491382,-490.0,0.00029315,3]
[368527553,1751195491390,-490.0,0.00029315,3]
[368527554,1751195491401,-490.0,0.00029315,3]
[368527555,1751195491411,-490.0,0.00029315,3]
[368527556,1751195491420,-1256.21,0.00029315,3]
[368527557,1751195491429,-663.42,0.00029315,3]
[368527558,1751195491438,-490.0,0.00029315,3]
[368527559,1751195491447,-490.0,0.00029315,3]
[368527560,1751195491456,-1418.54,0.00029315,3]
[368527561,1751195491465,-490.0,0.00029315,3]
[368527562,1751195491474,-490.0,0.00029315,3]
[368527563,1751195491483,-490.0,0.00029315,3]
[368527564,1751195491493,-490.0,0.00029315,3]
[368527565,1751195491502,-490.0,0.00029315,3]
[368527566,1751195491511,-490.0,0.00029315,3]
[368527567,1751195491520,-490.0,0.00029315,3]
[368527568,1751195491529,-496.37,0.00029315,3]
[368527569,1751195491538,-1013.41,0.00029315,3]
[368527570,1751195491547,-490.0,0.00029315,3]
[368527571,1751195491556,-1113.41,0.00029315,3]
[368527572,1751195491565,-490.0,0.00029315,3]
[368527573,1751195491574,-643.24,0.00029315,3]
[368527574,1751195491583,-490.0,0.00029315,3]
[368527575,1751195491592,-490.0,0.00029315,3]
[368527576,1751195491601,-490.0,0.00029315,3]
[368527577,1751195491610,-490.0,0.00029315,3]
[368527578,1751195491619,-827.85,0.00029315,3]
[368527579,1751195491628,-490.0,0.00029315,3]
[368527580,1751195491637,-1223.98,0.00029315,3]
[368527581,1751195491646,-560.05,0.00029315,3]
[368527582,1751195491655,-815.38,0.00029315,3]
[368527583,1751195491664,-745.76,0.00029315,3]
[368527584,1751195491673,-566.05,0.00029315,3]
[368527585,1751195491682,-490.0,0.00029315,3]
[368527586,1751195491692,-568.47,0.00029315,3]
[368527587,1751195491703,-199.87877557,0.00029315,3]
[368527588,1751195491712,-1242.08,0.00029315,3]
[368527589,1751195491722,-490.0,0.00029315,3]
[368527590,1751195491732,-957.14,0.00029315,3]
[368527591,1751195491742,-490.0,0.00029315,3]
[368527592,1751195491751,-490.0,0.00029315,3]
[368527593,1751195491760,-490.0,0.00029315,3]
[368527594,1751195491769,-490.0,0.00029315,3]
[368527595,1751195491779,-532.08,0.00029315,3]
[368527596,1751195491788,-490.0,0.00029315,3]
[368527597,1751195491797,-490.0,0.00029315,3]
[368527598,1751195491806,-1422.6,0.00029315,3]
[368527599,1751195491815,-490.0,0.00029315,3]
[368527600,1751195491824,-490.0,0.00029315,3]
[368527601,1751195491833,-490.0,0.00029315,3]
[368527602,1751195491842,-490.0,0.00029315,3]
[368527603,1751195491851,-756.27,0.00029315,3]
[368527604,1751195491860,-1401.37,0.00029315,3]
[368527605,1751195491869,-915.4,0.00029315,3]
[368527606,1751195491878,-490.0,0.00029315,3]
[368527607,1751195491887,-490.0,0.00029315,3]
[368527608,1751195491896,-1294.27,0.00029315,3]
[368527609,1751195491905,-759.55,0.00029315,3]
[368527610,1751195491914,-598.76,0.00029315,3]
[368527611,1751195491923,-1087.93,0.00029315,3]
[368527612,1751195491932,-490.0,0.00029315,3]
[368527613,1751195491941,-490.0,0.00029315,3]
[368527614,1751195491950,-490.0,0.00029315,3]
[368527615,1751195491960,-490.0,0.00029315,3]
[368527616,1751195491969,-490.0,0.00029315,3]
[368527617,1751195491978,-490.0,0.00029315,3]
[368527618,1751195491987,-525.72,0.00029315,3]
[368527619,1751195491997,-1267.05,0.00029315,3]
[368527620,1751195492006,-490.0,0.00029315,3]
[368527621,1751195492015,-490.0,0.00029315,3]
[368527622,1751195492025,-1134.9,0.00029315,3]
[368527623,1751195492034,-1224.95,0.00029315,3]
[368527624,1751195492043,-493.99,0.00029315,3]
[368527625,1751195492053,-490.0,0.00029315,3]
[368527626,1751195492063,-490.0,0.00029315,3]
[368527627,1751195492072,-490.0,0.00029315,3]
[368527628,1751195492081,-490.0,0.00029315,3]
[368527629,1751195492091,-571.79,0.00029315,3]
[368527630,1751195492100,-735.44,0.00029315,3]
[368527631,1751195492110,-549.79,0.00029315,3]
[368527632,1751195492119,-490.0,0.00029315,3]
[368527633,1751195492129,-738.46,0.00029315,3]
[368527634,1751195492139,-1388.19,0.00029315,3]
[368527635,1751195492149,-160.77530327,0.00029315,3]
[368527636,1751195492889,-490.0,0.00027945,3]
[368527637,1751195492899,-793.89469673,0.00029315,3]
[368527638,1751195492910,-843.616844,0.00029315,3]
[368527639,1751195492919,-490.0,0.00029315,3]
[368527640,1751195492929,-490.0,0.00029315,3]
[368527641,1751195492939,-490.0,0.00029315,3]
[368527642,1751195492949,-153.035083,0.00029315,3]
[368527643,1751195492959,-292.491065,0.00029315,3]
[368527644,1751195492968,-717.63,0.00029315,3]
[368527645,1751195492977,-729.8,0.00029315,3]
[368527646,1751195492986,-175.66741934,0.00029315,3]
[368527647,1751195493429,-942.53,0.00027397,3]
[368527648,1751195493439,-490.0,0.00027397,3]
[368527649,1751195493449,-491.2939658,0.00027397,3]
[368527650,1751195493459,-1719.14,0.00027397,3]
[368527651,1751195493469,-942.53,0.00027671,3]
[368527652,1751195493479,-490.0,0.00027671,3]
[368527653,1751195493490,-1719.14,0.00027671,3]
[368527654,1751195493499,-490.0,0.00027945,3]
[368527655,1751195493509,-942.53,0.00027945,3]
[368527656,1751195493519,-490.0,0.00027945,3]
[368527657,1751195493529,-490.0,0.00027945,3]
[368527658,1751195493539,-490.0,0.00028219,3]
[368527659,1751195493549,-490.0,0.00028219,3]
[368527660,1751195493559,-942.53,0.00028219,3]
[368527661,1751195493569,-490.0,0.00028219,3]
[368527662,1751195493579,-490.0,0.00028493,3]
[368527663,1751195493589,-490.0,0.00028493,3]
[368527664,1751195493598,-942.53,0.00028493,3]
[368527665,1751195493608,-490.0,0.00028493,3]
[368527666,1751195493618,-490.0,0.00028767,3]
[368527667,1751195493627,-490.0,0.00028767,3]
[368527668,1751195493637,-942.53,0.00028767,3]
[368527669,1751195493647,-490.0,0.00028767,3]
[368527670,1751195493657,-81101.22,0.00029041,3]
[368527671,1751195493667,-49.8469231,0.00029041,3]
[368527672,1751195493682,-440.1530769,0.00029041,3]
[368527673,1751195493693,-490.0,0.00029041,3]
[368527674,1751195493703,-942.53,0.00029041,3]
[368527675,1751195493712,-442.35258066,0.00029315,3]
[368527676,1751195493723,-490.0,0.00029315,3]
[368527677,1751195493732,-779.17,0.00029315,3]
[368527678,1751195493742,-490.0,0.00029315,3]
[368527679,1751195493752,-490.49,0.00029315,3]
[368527680,1751195493762,-208.93,0.00029315,3]
[368527681,1751195493771,-490.46,0.00029315,3]
[368527682,1751195493780,-490.0,0.00029315,3]
[368527683,1751195493789,-1183.749927,0.00029315,3]
[368527684,1751195493799,-701.72,0.00029315,3]
[368527685,1751195493808,-490.0,0.00029315,3]
[368527686,1751195493818,-490.0,0.00029315,3]
[368527687,1751195493827,-1063.67,0.00029315,3]
[368527688,1751195493836,-663.95,0.00029315,3]
[368527689,1751195493846,-862.32,0.00029315,3]
[368527690,1751195493856,-1237.98,0.00029315,3]
[368527691,1751195493865,-490.0,0.00029315,3]
[368527692,1751195493874,-827.18,0.00029315,3]
[368527693,1751195493884,-490.0,0.00029315,3]
[368527694,1751195493893,-490.0,0.00029315,3]
[368527695,1751195493902,-823.41,0.00029315,3]
[368527696,1751195493912,-490.0,0.00029315,3]
[368527697,1751195493922,-668.76,0.00029315,3]
[368527698,1751195493931,-547.47,0.00029315,3]
[368527699,1751195493940,-748.67,0.00029315,3]
[368527700,1751195493951,-490.0,0.00029315,3]
[368527701,1751195493960,-490.0,0.00029315,3]
[368527702,1751195493969,-1401.904447,0.00029315,3]
[368527703,1751195493979,-490.0,0.00029315,3]
[368527704,1751195493988,-588.25,0.00029315,3]
[368527705,1751195493998,-490.0,0.00029315,3]
[368527706,1751195494010,-1344.91,0.00029315,3]
[368527707,1751195494020,-490.0,0.00029315,3]
[368527708,1751195494029,-688.18,0.00029315,3]
[368527709,1751195494039,-490.0,0.00029315,3]
[368527710,1751195494049,-918.01,0.00029315,3]
[368527711,1751195494059,-490.0,0.00029315,3]
[368527712,1751195494068,-300.0,0.00029315,3]
[368527713,1751195494078,-606.16,0.00029315,3]
[368527714,1751195494089,-504.36,0.00029315,3]
[368527715,1751195494098,-490.0,0.00029315,3]
[368527716,1751195494108,-860.61,0.00029315,3]
[368527717,1751195494118,-490.0,0.00029315,3]
[368527718,1751195494128,-490.0,0.00029315,3]
[368527719,1751195494137,-492.65,0.00029315,3]
[368527720,1751195494146,-1029.14,0.00029315,3]
[368527721,1751195494156,-490.95,0.00029315,3]
[368527722,1751195494166,-490.0,0.00029315,3]
[368527723,1751195494176,-490.0,0.00029315,3]
[368527724,1751195494186,-490.0,0.00029315,3]
[368527725,1751195494195,-879.43,0.00029315,3]
[368527726,1751195494204,-576.42,0.00029315,3]
[368527727,1751195494214,-490.0,0.00029315,3]
[368527728,1751195494223,-490.0,0.00029315,3]
[368527729,1751195494233,-593.25,0.00029315,3]
[368527730,1751195494243,-537.32,0.00029315,3]
[368527731,1751195494252,-1231.36,0.00029315,3]
[368527732,1751195494263,-1062.64,0.00029315,3]
[368527733,1751195494272,-603.18,0.00029315,3]
[368527734,1751195494282,-587.36,0.00029315,3]
[368527735,1751195494291,-576.03,0.00029315,3]
[368527736,1751195494300,-490.0,0.00029315,3]
[368527737,1751195494309,-490.0,0.00029315,3]
[368527738,1751195494319,-618.5,0.00029315,3]
[368527739,1751195494330,-996.14,0.00029315,3]
[368527740,1751195494339,-588.38,0.00029315,3]
[368527741,1751195494350,-559.62,0.00029315,3]
[368527742,1751195494360,-593.04,0.00029315,3]
[368527743,1751195494370,-543.61,0.00029315,3]
[368527744,1751195494379,-594.32,0.00029315,3]
[368527745,1751195494388,-815.71,0.00029315,3]
[368527746,1751195494397,-490.0,0.00029315,3]
[368527747,1751195494407,-490.0,0.00029315,3]
[368527748,1751195494416,-490.0,0.00029315,3]
[368527749,1751195494425,-490.0,0.00029315,3]
[368527750,1751195494434,-496.77,0.00029315,3]
[368527751,1751195494443,-490.0,0.00029315,3]
[368527752,1751195494452,-630.45,0.00029315,3]
[368527753,1751195494462,-490.0,0.00029315,3]
[368527754,1751195494471,-612.62,0.00029315,3]
[368527755,1751195494480,-490.0,0.00029315,3]
[368527756,1751195494489,-490.0,0.00029315,3]
[368527757,1751195494499,-734.99,0.00029315,3]
[368527758,1751195494509,-941.86,0.00029315,3]
[368527759,1751195494519,-606.81,0.00029315,3]
[368527760,1751195494529,-490.0,0.00029315,3]
[368527761,1751195494539,-490.0,0.00029315,3]
[368527762,1751195494548,-490.0,0.00029315,3]
[368527763,1751195494557,-1147.39,0.00029315,3]
[368527764,1751195494567,-534.75,0.00029315,3]
[368527765,1751195494576,-490.0,0.00029315,3]
[368527766,1751195494586,-768.88,0.00029315,3]
[368527767,1751195494595,-501.48,0.00029315,3]
[368527768,1751195494604,-765.22,0.00029315,3]
[368527769,1751195494614,-490.0,0.00029315,3]
[368527770,1751195494623,-490.0,0.00029315,3]
[368527771,1751195494632,-624.11,0.00029315,3]
[368527772,1751195494641,-490.0,0.00029315,3]
[368527773,1751195494651,-518.02,0.00029315,3]
[368527774,1751195494660,-490.0,0.00029315,3]
[368527775,1751195494670,-490.0,0.00029315,3]
[368527776,1751195494679,-691.65,0.00029315,3]
[368527777,1751195494688,-490.0,0.00029315,3]
[368527778,1751195494698,-490.0,0.00029315,3]
[368527779,1751195494707,-1554.34,0.00029315,3]
[368527780,1751195494716,-536.67,0.00029315,3]
[368527781,1751195494725,-490.0,0.00029315,3]
[368527782,1751195494734,-490.0,0.00029315,3]
[368527783,1751195494743,-1504.15,0.00029315,3]
[368527784,1751195494753,-708.27,0.00029315,3]
[368527785,1751195494763,-490.0,0.00029315,3]
[368527786,1751195494772,-490.0,0.00029315,3]
[368527787,1751195494781,-490.0,0.00029315,3]
[368527788,1751195494791,-516.87,0.00029315,3]
[368527789,1751195494800,-490.0,0.00029315,3]
[368527790,1751195494810,-490.0,0.00029315,3]
[368527791,1751195494819,-490.0,0.00029315,3]
[368527792,1751195494828,-490.0,0.00029315,3]
[368527793,1751195494838,-604.89,0.00029315,3]
[368527794,1751195494847,-490.0,0.00029315,3]
[368527795,1751195494856,-1638.76,0.00029315,3]
[368527796,1751195494865,-490.0,0.00029315,3]
[368527797,1751195494874,-590.89,0.00029315,3]
[368527798,1751195494884,-1217.95,0.00029315,3]
[368527799,1751195494893,-490.0,0.00029315,3]
[368527800,1751195494902,-490.0,0.00029315,3]
[368527801,1751195494911,-528.4,0.00029315,3]
[368527802,1751195494920,-498.25,0.00029315,3]
[368527803,1751195494929,-1047.55,0.00029315,3]
[368527804,1751195494938,-1535.93,0.00029315,3]
[368527805,1751195494947,-932.64,0.00029315,3]
[368527806,1751195494956,-490.0,0.00029315,3]
[368527807,1751195494967,-1410.37,0.00029315,3]
[368527808,1751195494976,-857.63,0.00029315,3]
[368527809,1751195494986,-490.0,0.00029315,3]
[368527810,1751195494997,-490.0,0.00029315,3]
[368527811,1751195495010,-764.97,0.00029315,3]
[368527812,1751195495020,-1226.51,0.00029315,3]
[368527813,1751195495031,-719.95,0.00029315,3]
[368527814,1751195495041,-979.74,0.00029315,3]
[368527815,1751195495052,-991.19,0.00029315,3]
[368527816,1751195495061,-490.0,0.00029315,3]
[368527817,1751195495071,-892.18,0.00029315,3]
[368527818,1751195495080,-490.0,0.00029315,3]
[368527819,1751195495089,-490.0,0.00029315,3]
[368527820,1751195495099,-490.0,0.00029315,3]
[368527821,1751195495108,-300.3781717,0.00029315,3]
[368527822,1751195495117,-523.71,0.00029315,3]
[368527823,1751195495126,-283.49639065,0.00029315,3]
[368527824,1751195495136,-490.0,0.00029315,3]
[368527825,1751195495145,-490.0,0.00029315,3]
[368527826,1751195495154,-1618.13,0.00029315,3]
[368527827,1751195495164,-1261.23,0.00029315,3]
[368527828,1751195495173,-662.39,0.00029315,3]
[368527829,1751195495184,-533.43,0.00029315,3]
[368527830,1751195495195,-851.98,0.00029315,3]
[368527831,1751195495204,-3244.07,0.00029315,3]
[368527832,1751195495213,-490.0,0.00029315,3]
[368527833,1751195495222,-490.0,0.00029315,3]
[368527834,1751195495231,-490.0,0.00029315,3]
[368527835,1751195495240,-490.0,0.00029315,3]
[368527836,1751195495250,-490.0,0.00029315,3]
[368527837,1751195495259,-490.0,0.00029315,3]
[368527838,1751195495268,-650.15,0.00029315,3]
[368527839,1751195495277,-643.65,0.00029315,3]
[368527840,1751195495286,-588.08,0.00029315,3]
[368527841,1751195495295,-793.06,0.00029315,3]
[368527842,1751195495305,-1494.92,0.00029315,3]
[368527843,1751195495313,-11062.2,0.00029315,3]
[368527844,1751195495322,-650.49,0.00029315,3]
[368527845,1751195495335,-1369.42,0.00029315,3]
[368527846,1751195495344,-490.0,0.00029315,3]
[368527847,1751195495353,-490.0,0.00029315,3]
[368527848,1751195495363,-490.0,0.00029315,3]
[368527849,1751195495372,-992.98,0.00029315,3]
[368527850,1751195495382,-490.0,0.00029315,3]
[368527851,1751195495392,-2865.08,0.00029315,3]
[368527852,1751195495401,-490.0,0.00029315,3]
[368527853,1751195495411,-1255.19,0.00029315,3]
[368527854,1751195495420,-1048.51,0.00029315,3]
[368527855,1751195495430,-490.0,0.00029315,3]
[368527856,1751195495439,-895.06,0.00029315,3]
[368527857,1751195495448,-490.0,0.00029315,3]
[368527858,1751195495458,-1140.15,0.00029315,3]
[368527859,1751195495467,-1098.84,0.00029315,3]
[368527860,1751195495475,-689.9,0.00029315,3]
[368527861,1751195495485,-1475.7,0.00029315,3]
[368527862,1751195495494,-509.89,0.00029315,3]
[368527863,1751195495503,-846.61,0.00029315,3]
[368527864,1751195495512,-490.0,0.00029315,3]
[368527865,1751195495521,-800.75,0.00029315,3]
[368527866,1751195495530,-490.0,0.00029315,3]
[368527867,1751195495539,-1724.34,0.00029315,3]
[368527868,1751195495548,-839.61,0.00029315,3]
[368527869,1751195495558,-1838.21,0.00029315,3]
[368527870,1751195495567,-1420.15,0.00029315,3]
[368527871,1751195495576,-490.0,0.00029315,3]
[368527872,1751195495586,-511.65,0.00029315,3]
[368527873,1751195495596,-1365.53,0.00029315,3]
[368527874,1751195495605,-490.0,0.00029315,3]
[368527875,1751195495615,-1126.33,0.00029315,3]
[368527876,1751195495624,-753.94,0.00029315,3]
[368527877,1751195495633,-4179.4,0.00029315,3]
[368527878,1751195495644,-738.89,0.00029315,3]
[368527879,1751195495653,-490.0,0.00029315,3]
[368527880,1751195495664,-2082.18,0.00029315,3]
[368527881,1751195495673,-3115.11,0.00029315,3]
[368527882,1751195495682,-807.19,0.00029315,3]
[368527883,1751195495691,-1049.11,0.00029315,3]
[368527884,1751195495700,-740.57,0.00029315,3]
[368527885,1751195495710,-490.0,0.00029315,3]
[368527886,1751195495719,-490.0,0.00029315,3]
[368527887,1751195495728,-1044.97,0.00029315,3]
[368527888,1751195495737,-490.0,0.00029315,3]
[368527889,1751195495747,-1018.69,0.00029315,3]
[368527890,1751195495756,-1329.73,0.00029315,3]
[368527891,1751195495765,-664.26,0.00029315,3]
[368527892,1751195495775,-765.79,0.00029315,3]
[368527893,1751195495784,-1231.21,0.00029315,3]
[368527894,1751195495793,-5898.08,0.00029315,3]
[368527895,1751195495803,-1354.66,0.00029315,3]
[368527896,1751195495812,-801.57,0.00029315,3]
[368527897,1751195495822,-678.52,0.00029315,3]
[368527898,1751195495831,-218.60126595,0.00029315,3]
[368527899,1751195495840,-490.0,0.00029315,3]
[368527900,1751195495849,-728.11,0.00029315,3]
[368527901,1751195495858,-490.0,0.00029315,3]
[368527902,1751195495866,-490.0,0.00029315,3]
[368527903,1751195495875,-853.69,0.00029315,3]
[368527904,1751195496070,-2091.4,0.00029315,3]
[368527905,1751195496080,-1560.41,0.00029315,3]
[368527906,1751195496091,-898.14,0.00029315,3]
[368527907,1751195496101,-490.0,0.00029315,3]
[368527908,1751195496110,-490.0,0.00029315,3]
[368527909,1751195496119,-751.28,0.00029315,3]
[368527910,1751195496129,-490.0,0.00029315,3]
[368527911,1751195496138,-1923.3,0.00029315,3]
[368527912,1751195496148,-1248.49,0.00029315,3]
[368527913,1751195496157,-824.08,0.00029315,3]
[368527914,1751195496167,-490.0,0.00029315,3]
[368527915,1751195496176,-836.36,0.00029315,3]
[368527916,1751195496187,-2818.09,0.00029315,3]
[368527917,1751195496196,-1208.52,0.00029315,3]
[368527918,1751195496205,-2281.84,0.00029315,3]
[368527919,1751195496215,-1308.74,0.00029315,3]
[368527920,1751195496224,-812.38,0.00029315,3]
[368527921,1751195496233,-465.0715459,0.00029315,3]
[368527922,1751195496242,-965.91,0.00029315,3]
[368527923,1751195496251,-490.0,0.00029315,3]
[368527924,1751195496260,-2507.76,0.00029315,3]
[368527925,1751195496269,-1092.36,0.00029315,3]
[368527926,1751195496278,-490.0,0.00029315,3]
[368527927,1751195496287,-1392.28,0.00029315,3]
[368527928,1751195496297,-545.7,0.00029315,3]
[368527929,1751195496306,-756.84,0.00029315,3]
[368527930,1751195496315,-973.2,0.00029315,3]
[368527931,1751195496325,-490.0,0.00029315,3]
[368527932,1751195496338,-490.0,0.00029315,3]
[368527933,1751195496347,-1668.27,0.00029315,3]
[368527934,1751195496356,-6899.51,0.00029315,3]
[368527935,1751195496365,-875.0,0.00029315,3]
[368527936,1751195496375,-686.34,0.00029315,3]
[368527937,1751195496384,-490.0,0.00029315,3]
[368527938,1751195496394,-1310.27,0.00029315,3]
[368527939,1751195496403,-550.14,0.00029315,3]
[368527940,1751195496413,-1492.54,0.00029315,3]
[368527941,1751195496422,-678.08,0.00029315,3]
[368527942,1751195496431,-598.31,0.00029315,3]
[368527943,1751195496441,-678.33,0.00029315,3]
[368527944,1751195496450,-1285.64,0.00029315,3]
[368527945,1751195496460,-1183.52,0.00029315,3]
[368527946,1751195496469,-2084.42,0.00029315,3]
[368527947,1751195496479,-2071.23,0.00029315,3]
[368527948,1751195496488,-1111.98,0.00029315,3]
[368527949,1751195496499,-2149.28,0.00029315,3]
[368527950,1751195496509,-1343.62,0.00029315,3]
[368527951,1751195496519,-1189.09,0.00029315,3]
[368527952,1751195496528,-624.68,0.00029315,3]
[368527953,1751195496540,-1713.38,0.00029315,3]
[368527954,1751195496551,-728.39,0.00029315,3]
[368527955,1751195496560,-513.39749813,0.00029315,3]
[368527956,1751195496571,-490.0,0.00029315,3]
[368527957,1751195496582,-490.0,0.00029315,3]
[368527958,1751195496592,-1929.28,0.00029315,3]
[368527959,1751195496603,-1448.19,0.00029315,3]
[368527960,1751195496614,-428.04664428,0.00029315,3]
[368527961,1751195496623,-950.17,0.00029315,3]
[368527962,1751195496633,-490.0,0.00029315,3]
[368527963,1751195496643,-1415.52,0.00029315,3]
[368527964,1751195496654,-4228.03,0.00029315,3]
[368527965,1751195496664,-578.07,0.00029315,3]
[368527966,1751195496675,-2873.11,0.00029315,3]
[368527967,1751195496684,-1294.67,0.00029315,3]
[368527968,1751195496693,-716.65,0.00029315,3]
[368527969,1751195496702,-2568.99,0.00029315,3]
[368527970,1751195496712,-490.0,0.00029315,3]
[368527971,1751195496720,-490.0,0.00029315,3]
[368527972,1751195496729,-490.0,0.00029315,3]
[368527973,1751195496739,-500.96008187,0.00029315,3]
[368527974,1751195496748,-1298.15,0.00029315,3]
[368527975,1751195496758,-3934.62,0.00029315,3]
[368527976,1751195496768,-871.69,0.00029315,3]
[368527977,1751195496779,-490.0,0.00029315,3]
[368527978,1751195496788,-490.0,0.00029315,3]
[368527979,1751195496798,-1156.17,0.00029315,3]
[368527980,1751195496808,-490.0,0.00029315,3]
[368527981,1751195496817,-490.0,0.00029315,3]
[368527982,1751195496826,-490.0,0.00029315,3]
[368527983,1751195496838,-1135.44,0.00029315,3]
[368527984,1751195496847,-490.0,0.00029315,3]
[368527985,1751195496858,-490.0,0.00029315,3]
[368527986,1751195496867,-5438.07,0.00029315,3]
[368527987,1751195496876,-3395.49,0.00029315,3]
[368527988,1751195496885,-2131.93,0.00029315,3]
[368527989,1751195496896,-490.0,0.00029315,3]
[368527990,1751195496907,-595.7,0.00029315,3]
[368527991,1751195496916,-490.0,0.00029315,3]
[368527992,1751195496926,-1160.67,0.00029315,3]
[368527993,1751195496936,-1082.12,0.00029315,3]
[368527994,1751195496945,-3297.43,0.00029315,3]
[368527995,1751195496955,-490.0,0.00029315,3]
[368527996,1751195496966,-1219.38,0.00029315,3]
[368527997,1751195496975,-1291.41,0.00029315,3]
[368527998,1751195496985,-490.0,0.00029315,3]
[368527999,1751195496995,-490.0,0.00029315,3]
[368528000,1751195497005,-1046.99,0.00029315,3]
[368528001,1751195497015,-1351.77,0.00029315,3]
[368528002,1751195497025,-874.34,0.00029315,3]
[368528003,1751195497035,-490.0,0.00029315,3]
[368528004,1751195497044,-490.0,0.00029315,3]
[368528005,1751195497054,-490.0,0.00029315,3]
[368528006,1751195497063,-1084.91,0.00029315,3]
[368528007,1751195497072,-1243.77,0.00029315,3]
[368528008,1751195497082,-2069.3,0.00029315,3]
[368528009,1751195497092,-523.8,0.00029315,3]
[368528010,1751195497102,-664.94,0.00029315,3]
[368528011,1751195497113,-490.0,0.00029315,3]
[368528012,1751195497123,-1431.47,0.00029315,3]
[368528013,1751195497133,-490.0,0.00029315,3]
[368528014,1751195497145,-1230.19,0.00029315,3]
[368528015,1751195497154,-6887.93,0.00029315,3]
[368528016,1751195497163,-1307.69,0.00029315,3]
[368528017,1751195497174,-2182.43,0.00029315,3]
[368528018,1751195497185,-7977.88,0.00029315,3]
[368528019,1751195497195,-836.9,0.00029315,3]
[368528020,1751195497205,-15438.68,0.00029315,3]
[368528021,1751195497215,-490.0,0.00029315,3]
[368528022,1751195497225,-1062.58,0.00029315,3]
[368528023,1751195497235,-946.94,0.00029315,3]
[368528024,1751195497244,-752.46,0.00029315,3]
[368528025,1751195497253,-1047.7,0.00029315,3]
[368528026,1751195497261,-951.95,0.00029315,3]
[368528027,1751195497272,-2249.11,0.00029315,3]